Cogmind - Beta 15 @@@ ROGUE MODE // 2025.09.23 @ 23:57:05 Player: Crusang Result: Destroyed by H-61 Shepherd with Heavy Assault Cannon Performance ------------- Evolutions (2) 1000 Regions Visited (3) 600 Robots Destroyed (22) 110 Value Destroyed (387) 387 Prototype IDs (0) 0 Alien Tech Used (0) 0 Bonus (0) 0 TOTAL SCORE: 2097 Bonus ------- None Cogmind --------- Core Integrity 0/550 Matter 224/300 Energy 100/100 System Corruption 0% Temperature Cool (0) Movement Core (50) Location -8/Materials Parts ------- > --- POWER (1) -------- (None) > --- PROPULSION (2) --- (None) > --- UTILITY (6) ------ Targeting Computer ECM Suite > --- WEAPON (2) ------- (None) > --- INVENTORY (5) ---- Improved Light Cannon Peak State ------------ > --- POWER ------------ Light Ion Engine > --- PROPULSION ------- Carbon-fiber Leg Carbon-fiber Leg > --- UTILITY ---------- Improved Heat Sink Small Matter Pod Structural Scanner ECM Suite ECM Suite > --- WEAPON ----------- Medium Laser Improved Grenade Launcher > --- INVENTORY -------- Ion Engine Small Laser Improved Light Cannon Improved Light Cannon [Rating: 18] Favorites ----------- Power Ion Engine Engine Ion Engine Propulsion Aluminum Leg Leg Aluminum Leg Wheel Compact Wheel Flight Unit Flight Unit Utility ECM Suite Device ECM Suite Storage Small Matter Pod Processor Targeting Computer Weapon Medium Laser Energy Gun Medium Laser Ballistic Gun Light Assault Rifle Ballistic Cannon Improved Light Cannon Launcher Improved Grenade Launcher Slashing Weapon Katana Build | -11 -10 -9 -8 ------- Run | Yrd Mat Mat Mat Slots Evolved 4 | . . 2 2 Power . | . . . . Propulsion . | . . . . Utility 4 | . . 2 2 Weapon . | . . . . Parts Attached 29 | 6 11 6 6 Power 2 | 1 . 1 . Engine 2 | 1 . 1 . Core . | . . . . Reactor . | . . . . Propulsion 9 | 2 5 2 . Treads . | . . . . Leg 4 | . 2 2 . Wheel 3 | 2 1 . . Hover . | . . . . Flight 2 | . 2 . . Utility 9 | 1 2 2 4 Device 6 | . 1 2 3 Storage 2 | 1 1 . . Processor 1 | . . . 1 Hackware . | . . . . Protection . | . . . . Artifact . | . . . . Weapon 9 | 2 4 1 2 Energy Gun 4 | 1 3 . . Energy Cannon . | . . . . Ballistic Gun 2 | 1 1 . . Ballistic Cannon 1 | . . . 1 Launcher 1 | . . 1 . Special Weapon . | . . . . Impact Weapon . | . . . . Slashing Weapon 1 | . . . 1 Piercing Weapon . | . . . . Special Melee Weapon . | . . . . Unidentified Prototypes . | . . . . Parts Lost 16 | . 2 2 12 Power 1 | . . . 1 Propulsion 5 | . 2 1 2 Utility 5 | . . . 5 Weapon 5 | . . 1 4 Highest Loss Streak 9 | . 1 2 9 To Critical Strikes . | . . . . Average Backups 2 | . . 4 2 Power . | . . . . Propulsion . | . . . . Utility . | . . 1 . Weapon 1 | . . 2 1 Tool/Special . | . . . . Unused Backups 1 | . . . 1 Power . | . . . . Propulsion . | . . . . Utility . | . . . . Weapon 1 | . . . 1 Tool/Special . | . . . . Average Slot Usage (%) 77 | . 88 82 58 Engine 9 | . 14 11 4 Leg 15 | . 7 21 11 Wheel 2 | . 9 . . Flight 1 | . 7 . . Device 16 | . 11 17 18 Storage 9 | . 8 11 7 Energy Gun 15 | . 16 21 2 Ballistic Gun 2 | . 11 . . Launcher 1 | . . . 4 Slashing Weapon 1 | . . . 5 Peak Build Rating 18 | 6 7 17 18 Average Rating 8 | 4 6 7 12 On Entrance 7 | . 6 7 17 Naked Turns . | . . . . Heaviest Build 17 | 12 14 16 17 Greatest Support 32 | 32 32 30 30 Greatest Overweight (x) 3 | . 3 1 2 Average Overweight (x) . | . . . . Largest Inventory Capacity 8 | 8 8 5 5 Average Capacity 5 | 6 6 5 5 Most Carried 5 | 1 2 5 5 Average Carried 2 | . . 4 2 Final Capacity 8 | 8 5 5 5 Final Carried 5 | 1 2 5 1 Class Distribution -------------------- 61% | Mutant 30% | Scavenger-Mutant 8% | Infiltrator-Mutant Dominant Class ---------------- Mutant | -10/Materials Scavenger-Mutant | -9/Materials Mutant | -8/Materials Resources | -11 -10 -9 -8 ----------- Run | Yrd Mat Mat Mat Matter Collected 394 | 73 199 76 46 Remotely . | . . . . Salvage Created 429 | . 149 235 45 Parts 41 | . 13 24 4 Haulers Intercepted . | . . . . Recyclers Shooed . | . . . . Parts Field Recycled . | . . . . Retrieved Matter . | . . . . Parts Self-Destructed . | . . . . Prevented . | . . . . Kills | -11 -10 -9 -8 ------- Run | Yrd Mat Mat Mat Combat Hostiles Destroyed 17 | . 5 11 1 Guns 14 | . 5 9 . AOE 3 | . . 2 1 Classes Destroyed 5 | . 3 2 . Worker 3 | . 1 1 1 Watcher 2 | . . 1 1 Swarmer 13 | . 3 10 . Grunt 3 | . 2 . 1 Sentry 1 | . . 1 . Best Kill Streak 5 | . 3 5 3 Combat Bots Only 3 | . 3 3 1 Max Kills in Single Turn 3 | . 1 3 3 Gunslinging 1 | . . 1 . Exploded 2 | . . 2 1 Melee . | . . . . Uniques/NPCs Destroyed . | . . . . Combat | -11 -10 -9 -8 -------- Run | Yrd Mat Mat Mat Hostile Shots Fired 141 | . 30 59 52 Missed 43 | . 9 20 14 Hits 98 | . 21 39 38 Projectile 98 | . 21 39 38 Critical Strikes 4 | . 1 1 2 Damage Taken 1847 | . 249 360 1238 Core 695 | . 46 78 571 Absorbed by Shields . | . . . . Core Remaining (%) 87 | 100 81 80 . Volleys Fired 47 | . 18 20 9 Largest 2 | . 2 2 1 Hottest 100 | . 60 100 33 Shots Fired 85 | . 36 40 9 Gun 75 | . 36 39 . Cannon 9 | . . . 9 Launcher 1 | . . 1 . Special . | . . . . Kinetic 27 | . 18 . 9 Thermal 57 | . 18 39 . Explosive 1 | . . 1 . Electromagnetic . | . . . . Robot Hit Streak 7 | . 4 7 3 Robot Miss Streak 6 | . 2 6 2 Penetration Max . | . . . . Secondary Targets 3 | . . 3 . Max Gunslinging Chain 1 | . . 1 . Shots Hit Robots 62 | . 23 18 21 Core Hits 29 | . 9 14 6 Critical Kills . | . . . . Critical Parts Destroyed . | . . . . Critical Strikes 2 | . . 2 . Burn 2 | . . 2 . Melee Attacks 20 | . . . 20 Impact . | . . . . Slashing 20 | . . . 20 Piercing . | . . . . Sneak Attacks . | . . . . Combat Hostiles . | . . . . Follow-up Attacks . | . . . . Damage Inflicted 1415 | . 239 373 803 Guns 486 | . 235 251 . Cannons 80 | . . . 80 Explosions 530 | . . 116 414 Melee 309 | . . . 309 Ramming 10 | . 4 6 . Kinetic 170 | . 90 . 80 Thermal 810 | . 145 251 414 Explosive 116 | . . 116 . Electromagnetic . | . . . . Impact . | . . . . Slashing 309 | . . . 309 Piercing . | . . . . Highest Corruption . | . . . . Average Corruption . | . . . . Corruption Purged . | . . . . Corruption Blocked . | . . . . Overload Shots . | . . . . Overflow Damage 85 | . . . 85 Projectiles . | . . . . Explosions 85 | . . . 85 Melee . | . . . . Knockbacks . | . . . . Impact . | . . . . Kinetic . | . . . . Secondary . | . . . . Self-Inflicted Damage 86 | . 1 . 85 Shots 1 | . . . 1 Rammed 1 | . 1 . . Targets Rammed 5 | . 2 3 . Kicked 4 | . 1 3 . Crushed . | . . . . Highest Temperature 210 | . 188 210 3 Average Temperature 87 | . 101 80 3 Received Heat Transfer 354 | . 129 9 216 Siege Activations . | . . . . Martial Activations . | . . . . Shielding Activations . | . . . . Robots Disrupted . | . . . . Combat Hostiles . | . . . . Robots Corrupted . | . . . . Combat Hostiles . | . . . . Parts Fried . | . . . . Impact Corruptions . | . . . . Robots Melted . | . . . . Combat Hostiles . | . . . . Parts Melted 5 | . . 5 . Heat Transferred 1463 | . 325 888 250 Parts Sabotaged . | . . . . Parts Stolen . | . . . . Parts Stripped . | . . . . Power Chain Reactions . | . . . . Alert | -11 -10 -9 -8 ------- Run | Yrd Mat Mat Mat Maximum Alert Level . | . . . . Low Security (%) 100 | 100 100 100 100 Level 1 . | . . . . Level 2 . | . . . . Level 3 . | . . . . Level 4 . | . . . . Level 5 . | . . . . High Security . | . . . . Max Security . | . . . . Peak Influence 125 | . 60 123 125 Initial 48 | . . 5 48 Average 35 | . 27 42 37 Influence Increases 565 | . 125 295 145 Destroy 0b10 Robot/C 340 | . 100 220 20 Destroy 0b10 Robot/NC 25 | . 5 10 10 Destroy Leader 74 | . 20 42 12 Successful Hack 17 | . . 13 4 Disable Machine 60 | . . . 60 Destroy Structure 34 | . . 10 24 Lose Combat Pursuer 15 | . . . 15 Influence Decreases 545 | . 110 195 240 Entered New Map 77 | . . 10 67 Time Decay 337 | . 90 165 82 Lost Part 131 | . 20 20 91 Squads Dispatched 3 | . . 1 2 Investigation 1 | . . 1 . Extermination . | . . . . Reinforcement 2 | . . . 2 Assault . | . . . . Garrison . | . . . . Intercept . | . . . . Searches Triggered . | . . . . Construction Impeded . | . . . . Haulers Reinforced . | . . . . Active Scanning Responses . | . . . . Cargo Convoy Interrupts . | . . . . Stealth | -11 -10 -9 -8 --------- Run | Yrd Mat Mat Mat Distress Signals 1 | . . 1 . Communications Jammed . | . . . . Distress Signals . | . . . . Times Spotted 35 | . 8 18 9 Peak Tracking Total 5 | . 3 5 4 Tactical Retreats 6 | . 2 2 2 Traps | -11 -10 -9 -8 ------- Run | Yrd Mat Mat Mat Traps Triggered 1 | . . 1 . Indirectly . | . . . . Trap Hack Attempts . | . . . . Triggered . | . . . . Disarmed . | . . . . Reprogrammed . | . . . . Reused . | . . . . Traps Extracted . | . . . . Installed . | . . . . Triggered . | . . . . Machines | -11 -10 -9 -8 ---------- Run | Yrd Mat Mat Mat Machines Disabled 4 | . . . 4 Max in Single Turn 4 | . . . 4 Machines Repaired . | . . . . Machines Dismantled . | . . . . Machines Sabotaged . | . . . . Overloaded Fab Kills . | . . . . Hacking | -11 -10 -9 -8 --------- Run | Yrd Mat Mat Mat Machines Accessed 5 | . 1 3 1 Terminals 5 | . 1 3 1 Fabricators . | . . . . Repair Stations . | . . . . Recycling Units . | . . . . Scanalyzers . | . . . . Garrison Access . | . . . . Total Hacks 17 | . 3 12 2 Successful 9 | . 1 6 2 Failed 8 | . 2 6 . Catastrophic . | . . . . Database Lockouts . | . . . . Manual 1 | . 1 . . Terminals 17 | . 3 12 2 Fabricators . | . . . . Repair Stations . | . . . . Recycling Units . | . . . . Scanalyzers . | . . . . Garrison Access . | . . . . Terminal Hacks 9 | . 1 6 2 Record 5 | . 1 3 1 Emergency Access Points 2 | . . 1 1 Locate Traps 1 | . . 1 . Zone Layout 1 | . . 1 . Fabricator Hacks . | . . . . Repair Station Hacks . | . . . . Recycling Unit Hacks . | . . . . Scanalyzer . | . . . . Garrison Access Hacks . | . . . . Unauthorized Hacks . | . . . . Terminals . | . . . . Fabricators . | . . . . Repair Stations . | . . . . Recycling Units . | . . . . Scanalyzers . | . . . . Garrison Access . | . . . . Data Cores Recovered . | . . . . Used . | . . . . Hacking Detections 5 | . 1 3 1 Full Trace Events 2 | . 1 1 . Feedback Events . | . . . . Feedback Blocked . | . . . . Robot Schematics Acquired . | . . . . Robots Built . | . . . . Authchips . | . . . . Time . | . . . . Total Robot Build Rating . | . . . . Part Schematics Acquired . | . . . . Parts Built . | . . . . Authchips . | . . . . Time . | . . . . Total Part Build Rating . | . . . . Parts Repaired . | . . . . Time . | . . . . Parts Recycled . | . . . . Recycled Matter . | . . . . Retrieved Matter . | . . . . Retrieved Components . | . . . . Parts Scanalyzed . | . . . . Part Schematics Acquired . | . . . . Parts Damaged . | . . . . Bothacking | -11 -10 -9 -8 ------------ Run | Yrd Mat Mat Mat Used RIF Installer . | . . . . Robots Hacked . | . . . . Non-combat . | . . . . Combat . | . . . . Robot Hacks Applied . | . . . . Relay Couplers Released . | . . . . Fabnet Peak Effective % . | . . . . Robots Rewired . | . . . . Allies Hacked . | . . . . Hacks Repelled . | . . . . Allies | -11 -10 -9 -8 -------- Run | Yrd Mat Mat Mat Total Allies . | . . . . Largest Group . | . . . . Highest-Rated Group . | . . . . Highest-Rated Ally . | . . . . Total Orders . | . . . . Ally Attacks . | . . . . Total Damage . | . . . . Kills . | . . . . Allies Corrupted . | . . . . Allies Melted . | . . . . Intel | -11 -10 -9 -8 ------- Run | Yrd Mat Mat Mat Active Infowar (turns) 779 | . 204 437 138 Structural 296 | . . 236 60 ECM 779 | . 204 437 138 Robot Analysis Total . | . . . . Derelict Logs Recovered . | . . . . Drone Launches . | . . . . Drone Recoveries . | . . . . Exploration | -11 -10 -9 -8 ------------- Run | Yrd Mat Mat Mat Turns Passed 958 | 39 234 437 248 Spaces Moved 544 | 30 100 281 133 Core 30 | 1 1 . 28 Treads . | . . . . Legs 432 | . 46 281 105 Wheels 76 | 29 47 . . Hover . | . . . . Flight 6 | . 6 . . Fastest Speed 50 | 50 80 120 100 Average Speed 117 | 98 112 121 116 Slowest Speed 280 | 100 280 190 150 Overloaded Moves . | . . . . Propulsion Burnouts . | . . . . Robots Hopped . | . . . . Potential Cave-ins . | . . . . Cave-ins Triggered . | . . . . Exploration Rate (%) 18 | 4 17 33 18 Regions Visited 3 Branch Regions . Pre-discovered Areas . | . . . . Known Exits Taken . | . . . . Unknown Exits Taken 3 | 1 1 1 . Scrap Searched . | . . . . Spaces Dug . | . . . . Terrain Destroyed 36 | . . 12 24 Melee . | . . . . Projectile 1 | . . . 1 AOE 35 | . . 12 23 Terrain Rammed . | . . . . Walls Destroyed . | . . . . Machines Disabled . | . . . . Actions | -11 -10 -9 -8 --------- Run | Yrd Mat Mat Mat Total 745 | 36 187 334 188 Wait 86 | . 48 22 16 Move 541 | 29 99 280 133 Hop . | . . . . Pick Up 4 | 1 1 2 . Fast Attach 23 | 6 9 4 4 Attach 3 | . 1 . 2 Detach 1 | . 1 . . Swap 4 | . 1 2 1 Drop 11 | . 7 1 3 Fire 47 | . 18 20 9 Melee 20 | . . . 20 Ram 1 | . 1 . . Kick 4 | . 1 3 . Crush . | . . . . Escape Stasis . | . . . . Rewire . | . . . . Trap . | . . . . Miscellaneous . | . . . . Route ------- -11/Scrapyard -10/Materials -9/Materials -8/Materials (discovered 1 exit: [*Fac]) History --------- Turn | Location | Event 16 | -11/Scrapyard | Discovered new exit (range 16) 40 | -11/Scrapyard | Entered Materials 234 | -10/Materials | Discovered new exit (range 15) 274 | -10/Materials | Entered another Materials area 274 | -9/Materials | Evolved 2 slots: Utility x2 668 | -9/Materials | Discovered new exit (range 10) 711 | -9/Materials | Entered another Materials area 711 | -8/Materials | Evolved 2 slots: Utility x2 818 | -8/Materials | Discovered new exit (range 15) 914 | -8/Materials | Core integrity fell below 50% 943 | -8/Materials | Core integrity fell below 20% 945 | -8/Materials | Lost 9 parts (1p2n4u2w) 959 | -8/Materials | Destroyed by H-61 Shepherd with Heavy Assault Cannon Last Messages --------------- 00912_ M-13 Machinist repairs G-47 Trooper Aluminum Leg. 00912_ U-05 Engineer lays Concrete. 00914_ Sml. Matter Pod destroyed. 00914_ Critical hit (Blast). 00914_ Knocked back. 00914_ U-05 Engineer lays Concrete. 00916_ R-06 Scavenger collects Lgt. Ion Engine. 00916_ U-05 Engineer lays Concrete. 00919_ G-47 Trooper destroyed. 00920_ U-05 Engineer lays Concrete. 00925_ U-05 Engineer builds a Wall. 00927_ U-05 Engineer lays Concrete. 00929_ Knocked back. 00931_ U-05 Engineer lays Concrete. 00942_ Penetrated by Slug. 00942_ Knocked back. 00942_ U-05 Engineer lays Concrete. 00947_ Knocked back. 00948_ U-05 Engineer lays Concrete. 00959_ Katana destroyed. Map ----- +----------------------------------------------------+ | ????????????????????????# / | | ???????????????????????## ####### | | ???????????????????????## # ####### | | ???????????????????????# [%*# ##???## | | ???????????????????###### # # !## ###??## | | ???????????????????# # #??## | | ???????????????????# # #??### | | ???????????????????# + #??### | | ???????????????????# # ###### | | ???????????????????# # | | ???????????????????############## ####### | | ?????????????????????????####?### #?????? | | ?????????????????????????# ! # #?????? | | ?????????????????????????#" # #?????? | | ?????????????????????????#" " # #?????? | | ?????????????????????????#" "" # #?????? | | ?????????????????????????#T "" # ###+### | | ??????????????????########" """ # | | ??????????????????# #" "" + | | ??????????????????# "" #" """ # % | | ??????????????????# "T # """ # ####### | | ??????????????????# "" ?# """ # % #?????? | | ??????????????????# ??# " # #?????? | | ??????????????????# ???# %# ####### | | ??????????####+####;#+########### " # | | ??????????# H@ % u " # | | ??????????# < m """ # | | ??????????# % " """ # | | ??????????####+####;;; " """ # | | ??????????????????#### %% " # | | ?????????????????????# % " # | | ?????????????????????# "###### | | ???????????????????#"" u "#????? | | ???????????????????#"Y u "#????? | | ???????????????????#"" "#????? | | ???????????????????### % "#????? | | ?????????????????????# " #???? | | ?????????????????????# =""#???? | | ?????????????????????# "#???? | | ????????????????????? "#???? | | ????????????????????? ##???? | | ???????????????????? "T" ?????? | | ????????????????????########+#"" ?????? | | ??????????????????????????????####????????? | | ??????????????????????????????????????????? | | ??????????????????????????????????????????? | | ??????????????????????????????????????????? | | ??????????????????????????????????????????? | | ??????????????????????????????????????????? | | ??????????????????????????????????????????? | +----------------------------------------------------+ Best States ------------- Heat Dissipation 45 Energy Generation 10 Energy Capacity 250 Matter Stores 268 Matter Capacity 350 Sight Range 16 Terrain Scan Density 10 ECM Strength 1 Evasion (%) 55 Targeting Accuracy 5 Item Schematics ----------------- None Robot Schematics ------------------ None Fabricated ------------ Nothing Repaired ---------- Nothing Alien Tech Used ----------------- None Achievements -------------- None Challenges ------------ None Game ------ Seed ThrusterExpertJets Manual? 0 Play Time 00:16:18 Cumulative 6.6 hours Start 2025.09.23 @ 11:48:21 End 2025.09.23 @ 23:57:05 Sessions 3 Manual Loads 0 Difficulty Rogue Special Mode None Game No. 10 Rogue 3 Adventurer 6 Explorer 1 Win Type - Total 1 Types 1/0/0/0/0/0/0/0/0/0 Lore% 7 Gallery% 22 Achievement% 21 Wizard Run 0 Options --------- Layout 0 ASCII 0 Keyboard 0 Movement Numpad Keybinds 0 Fullscreen 2 Font 24/Smallcaps Map View 76x50 Zoom Use 0% Tactical HUD 1 Map Filters NONE Filters NONE Steam 1 RUN: 07bc2b71-0a08-45d7-89e8-fa7aa9ddaee9